Cogmind - Beta 17 @@@ ROGUE MODE // 2026.06.27 @ 18:31:34 Player: LN-5RVR Result: Destroyed by S-27 Virus with Autogun Performance ------------- Evolutions (5) 2500 Regions Visited (12) 2400 Robots Destroyed (103) 515 Value Destroyed (3193) 3193 Prototype IDs (16) 320 Alien Tech Used (0) 0 Bonus (646) 646 TOTAL SCORE: 9574 Bonus ------- High Alert Combat Kills 46 Aligned with FarCom 300 Met Imprinter 300 Cogmind --------- Core Integrity 0/1000 Matter 280/300 Energy 75/100 System Corruption 4% Temperature Cool (0) Movement Core (300) Ox5 Location -5/Factory Parts ------- > --- POWER (1) -------- (None) > --- PROPULSION (6) --- (None) > --- UTILITY (6) ------ Medium Storage Unit Improved Melee Analysis Suite Improved Melee Analysis Suite Advanced Melee Analysis Suite > --- WEAPON (4) ------- Scythe Spear Spear > --- INVENTORY (10) --- 0b10 Decoder Chip [Looter] Makeshift Axe Power Sword Makeshift Spear Peak State ------------ > --- POWER ------------ Micro Fission Core > --- PROPULSION ------- Improved VTOL Module Xenon Bombardment Thruster Field Propulsion Drive Field Propulsion Drive Nuclear Pulse Array > --- UTILITY ---------- Medium Storage Unit Improved Melee Analysis Suite Improved Melee Analysis Suite Advanced Melee Analysis Suite Transmission Jammer Hacking Suite > --- WEAPON ----------- Shock Maul Scythe Spear CR-A16's Pointy Stick > --- INVENTORY -------- Light Nuclear Core Light Nuclear Core VTOL Module VTOL Module 0b10 Decoder Chip [Looter] Scythe Makeshift Axe Power Sword Spear Makeshift Spear [Rating: 79] Favorites ----------- Power Ion Engine Engine Ion Engine Power Core Light Nuclear Core Reactor Cold Fusion Reactor Propulsion Aluminum Leg Leg Aluminum Leg Hover Unit Hover Unit Flight Unit Improved VTOL Module Utility Improved Melee Analysis Suite Device PSU Rigger Storage Small Storage Unit Processor Improved Melee Analysis Suite Hackware Hacking Suite Protection Improved Propulsion Shielding Weapon Makeshift Axe Energy Gun Small Laser Energy Cannon YOLO Cannon Ballistic Gun High-powered Shotgun Impact Weapon Great Maul Slashing Weapon Makeshift Axe Piercing Weapon CR-A16's Pointy Stick Build | -11 -10 -10 -10 -9 -8 -8 -7 -6 -6 -6 -5 -5 ------- Run | Yrd Mat Min Exi Min Mat Sto Fac Fac Low Zio Pro Fac Slots Evolved 10 | . . . . . 4 . 2 2 . . . 2 Power . | . . . . . . . . . . . . . Propulsion 4 | . . . . . 2 . . 1 . . . 1 Utility 4 | . . . . . 2 . 1 1 . . . . Weapon 2 | . . . . . . . 1 . . . . 1 Parts Attached 102 | 6 6 3 1 2 12 14 9 16 3 3 5 22 Power 13 | 1 1 1 . . 2 1 1 2 . . 2 2 Engine 5 | 1 1 1 . . 1 1 . . . . . . Core 7 | . . . . . 1 . 1 1 . . 2 2 Reactor 1 | . . . . . . . . 1 . . . . Propulsion 43 | 2 3 . . 1 5 6 3 9 . . 3 11 Treads . | . . . . . . . . . . . . . Leg 6 | 2 3 . . 1 . . . . . . . . Wheel . | . . . . . . . . . . . . . Hover 18 | . . . . . 5 5 . 7 . . . 1 Flight 19 | . . . . . . 1 3 2 . . 3 10 Utility 20 | 1 1 . . 1 3 2 4 5 1 . . 2 Device 3 | . . . . 1 . . 1 . . . . 1 Storage 2 | 1 . . . . . . . 1 . . . . Processor 11 | . 1 . . . . 2 3 4 1 . . . Hackware 1 | . . . . . . . . . . . . 1 Protection 3 | . . . . . 3 . . . . . . . Artifact . | . . . . . . . . . . . . . Weapon 26 | 2 1 2 1 . 2 5 1 . 2 3 . 7 Energy Gun 7 | . 1 1 . . 1 4 . . . . . . Energy Cannon 1 | . . . 1 . . . . . . . . . Ballistic Gun 4 | 2 . . . . 1 1 . . . . . . Ballistic Cannon . | . . . . . . . . . . . . . Launcher . | . . . . . . . . . . . . . Special Weapon . | . . . . . . . . . . . . . Impact Weapon 4 | . . . . . . . 1 . 2 . . 1 Slashing Weapon 6 | . . 1 . . . . . . . 2 . 3 Piercing Weapon 4 | . . . . . . . . . . 1 . 3 Special Melee Weapon . | . . . . . . . . . . . . . Unidentified Prototypes 12 | . . . 1 1 . 7 . 2 . . . 1 Parts Lost 45 | . 1 3 . . 3 3 9 . 4 . 5 17 Power 9 | . 1 1 . . 1 1 2 . . . 1 2 Propulsion 19 | . . . . . 1 . 4 . 2 . 3 9 Utility 10 | . . . . . 1 1 3 . 1 . 1 3 Weapon 7 | . . 2 . . . 1 . . 1 . . 3 Highest Loss Streak 12 | . 1 2 . . 2 2 6 . 3 . 4 12 To Critical Strikes . | . . . . . . . . . . . . . Average Backups 7 | 2 5 7 7 7 5 7 7 6 8 8 9 8 Power . | . . . . . 1 1 . . 1 . . 1 Propulsion 4 | 1 3 6 6 5 3 4 5 3 6 6 4 1 Utility 1 | . . 1 1 1 . 1 1 1 1 1 1 1 Weapon . | . . . . . . . . . . . 2 4 Tool/Special . | . . . . . . . . . . . . . Unused Backups 12 | . 2 . . . . 4 . 1 1 . 1 3 Power 1 | . . . . . . 1 . . . . . . Propulsion 6 | . 2 . . . . 3 . . 1 . . . Utility 3 | . . . . . . . . 1 . . 1 1 Weapon 2 | . . . . . . . . . . . . 2 Tool/Special . | . . . . . . . . . . . . . Average Slot Usage (%) 93 | . 95 97 99 100 92 98 84 88 82 85 87 88 Engine 5 | . 14 13 14 14 8 . 5 . . . . . Core 2 | . . . . . . 7 . 1 . . 1 4 Reactor 1 | . . . . . . . . 3 6 6 4 . Leg 9 | . 28 28 28 28 . . . . . . . . Hover 16 | . . . . . 33 35 22 11 22 20 15 . Flight 3 | . . . . . . . 4 19 . . 6 26 Device 2 | . . . . 4 9 1 11 . . . . 2 Storage 9 | . 14 14 14 14 9 9 6 3 6 6 6 5 Processor 17 | . 10 14 14 9 . 16 15 34 32 33 32 18 Protection 3 | . . . . . 14 8 . . . . . . Energy Gun 4 | . . 13 14 14 3 . 2 . . . . . Ballistic Gun 4 | . 27 2 . . 5 8 . . . . . . Impact Weapon 2 | . . . . . . . 4 6 13 14 . 4 Slashing Weapon 7 | . . 9 13 14 9 9 7 6 . 2 13 3 Piercing Weapon 1 | . . . . . . . . . . 2 6 11 Peak Build Rating 79 | 6 7 10 26 17 28 38 45 64 64 62 62 79 Average Rating 32 | 4 6 8 10 12 25 30 38 57 59 59 59 67 On Entrance 29 | . 6 7 10 11 17 28 36 37 64 59 62 50 Avg Prop Armor Cover (%) 12 | . . . . . . . . 12 . . . . Naked Turns . | . . . . . . . . . . . . . Heaviest Build 33 | 13 13 15 14 16 28 30 22 28 33 33 30 26 Greatest Support 48 | 20 20 20 20 20 24 30 30 30 48 38 38 38 Greatest Overweight (x) 6 | . . . . . 1 1 4 4 1 . 1 6 Average Overweight (x) . | . . . . . . . . . . . . . Largest Inventory Capacity 10 | 8 8 8 8 8 8 8 8 10 10 10 10 10 Average Capacity 8 | 6 8 8 8 8 8 8 7 8 10 10 10 10 Most Carried 10 | 4 8 8 8 8 8 8 8 10 10 10 10 10 Average Carried 7 | 2 5 7 7 7 5 7 7 6 8 8 9 8 Final Capacity 10 | 8 8 8 8 8 8 8 5 10 10 10 10 10 Final Carried 10 | 4 8 7 8 6 8 8 4 10 8 10 6 4 Class Distribution -------------------- 48% | Mutant 20% | Scavenger-Mutant 20% | Gladiator 8% | Sprinter Dominant Class ---------------- Mutant | -10/Materials Scavenger-Mutant | -10/Mines Scavenger-Mutant | -10/Exiles Scavenger-Mutant | -9/Mines Mutant | -8/Materials Mutant | -8/Storage Gladiator | -7/Factory Sprinter | -6/Factory Gladiator | -6/Lower Caves Gladiator | -6/Zion Gladiator | -5/Proximity Caves Sprinter | -5/Factory Resources | -11 -10 -10 -10 -9 -8 -8 -7 -6 -6 -6 -5 -5 ----------- Run | Yrd Mat Min Exi Min Mat Sto Fac Fac Low Zio Pro Fac Matter Collected 1817 | 75 373 113 . 114 166 331 22 278 45 . 115 185 Remotely . | . . . . . . . . . . . . . Salvage Created 3829 | . 408 236 . . 527 667 380 337 225 . 465 584 Parts 173 | . 23 10 . . 31 39 11 9 4 . 20 26 Haulers Intercepted 1 | . . . . . . 1 . . . . . . Recyclers Shooed . | . . . . . . . . . . . . . Parts Field Recycled . | . . . . . . . . . . . . . Retrieved Matter . | . . . . . . . . . . . . . Parts Self-Destructed 19 | . . . . . . . . . 3 . 16 . Prevented 1 | . . . . . . . . . 1 . . . Parts Restored . | . . . . . . . . . . . . . Kills | -11 -10 -10 -10 -9 -8 -8 -7 -6 -6 -6 -5 -5 ------- Run | Yrd Mat Min Exi Min Mat Sto Fac Fac Low Zio Pro Fac Combat Hostiles Destroyed 83 | . 8 7 . . 11 14 10 . 6 . 13 14 Melee 56 | . . 1 . . 10 12 5 . 2 . 13 13 Guns 15 | . 8 4 . . 1 2 . . . . . . AOE 2 | . . 2 . . . . . . . . . . Classes Destroyed 12 | . 3 1 . . 3 1 1 1 . . 2 . Worker 6 | . 2 . . . . . 1 3 . . . . Builder 2 | . 1 . . . . . 1 . . . . . Hauler 1 | . . . . . . 1 . . . . . . Recycler 3 | . . . . . . . . 2 . . . 1 Operator 3 | . . . . . 1 . . 1 . . . 1 Drone 2 | . . . . . . . . . . . 2 . Watcher 5 | . . . . . 3 1 . . . . . 1 Swarmer 35 | . . 3 . . 4 3 4 . 3 . 6 12 Grunt 32 | . 8 4 . . 3 6 5 . 3 . 3 . Sentry 10 | . . . . . 4 5 . . . . . 1 Hunter 2 | . . . . . . . 1 . . . 1 . Programmer 2 | . . . . . . . . . . . 1 1 Best Kill Streak 8 | . 5 3 . . 8 3 8 4 3 . 6 6 Combat Bots Only 8 | . 4 3 . . 8 3 8 . 3 . 6 6 Max Kills in Single Turn 2 | . 2 2 . . 1 1 1 1 1 . 1 2 Gunslinging . | . . . . . . . . . . . . . Exploded 2 | . . 2 . . . . . . . . . . Melee 2 | . . 1 . . 1 1 1 . 1 . 1 2 Uniques/NPCs Destroyed . | . . . . . . . . . . . . . Combat | -11 -10 -10 -10 -9 -8 -8 -7 -6 -6 -6 -5 -5 -------- Run | Yrd Mat Min Exi Min Mat Sto Fac Fac Low Zio Pro Fac Hostile Shots Fired 550 | . 36 51 . . 44 64 87 . 46 . 62 160 Missed 171 | . 7 16 . . 10 25 32 . 11 . 26 44 Hits 379 | . 29 35 . . 34 39 55 . 35 . 36 116 Projectile 379 | . 29 35 . . 34 39 55 . 35 . 36 116 AOE 1 | . . . . . . . . . . . . 1 Critical Strikes 10 | . . 1 . . 2 2 1 . 1 . 1 2 Damage Taken 6153 | . 361 361 . . 398 614 793 209 609 . 670 2138 Core 2112 | . 46 85 . . 90 162 241 173 125 . 190 1000 Absorbed by Shields 47 | . . . . . . . 47 . . . . . Redirected to Shielding 229 | . . . . . 114 115 . . . . . . Ignored by Resistances 6 | . . . . . . 6 . . . . . . Regen/Repaired (Parts) 104 | . . . . . 21 83 . . . . . . Core Remaining (%) 61 | 100 . . . 47 . 54 65 . . . 42 . Volleys Fired 91 | . 43 28 . . 8 12 . . . . . . Largest 2 | . 2 2 . . 1 1 . . . . . . Hottest 63 | . 60 60 . . 63 56 . . . . . . Shots Fired 143 | . 85 37 1 . 8 12 . . . . . . Gun 143 | . 85 37 1 . 8 12 . . . . . . Cannon . | . . . . . . . . . . . . . Launcher . | . . . . . . . . . . . . . Special . | . . . . . . . . . . . . . Kinetic 108 | . 84 9 . . 4 11 . . . . . . Thermal 6 | . . . 1 . 4 1 . . . . . . Explosive . | . . . . . . . . . . . . . Electromagnetic 29 | . 1 28 . . . . . . . . . . Robot Hit Streak 15 | . 15 6 1 . 3 5 . . . . . . Robot Miss Streak 7 | . 7 3 . . 2 3 . . . . . . Penetration Max . | . . . . . . . . . . . . . Secondary Targets . | . . . . . . . . . . . . . Shots Hit Robots 256 | . 50 27 1 . 30 49 24 6 11 . 26 32 Core Hits 105 | . 20 12 . . 16 19 6 2 1 . 14 15 Critical Kills 4 | . . . . . . . 2 . 1 . . 1 Critical Parts Destroyed 15 | . . . . . . . 5 2 2 . . 6 Critical Strikes 30 | . . 1 . . . 5 7 2 3 . 5 7 Smash 19 | . . . . . . . 7 2 3 . . 7 Sever 10 | . . 1 . . . 5 . . . . 4 . Impale 1 | . . . . . . . . . . . 1 . Melee Attacks 303 | . . 5 . . 52 83 46 7 13 . 36 61 Impact 67 | . . . . . . . 29 6 13 . . 19 Slashing 171 | . . 5 . . 52 83 17 1 . . 11 2 Piercing 65 | . . . . . . . . . . . 25 40 Sneak Attacks 19 | . . . . . 1 4 3 5 . . 4 2 Combat Hostiles 2 | . . . . . . 1 . . . . 1 . Follow-up Attacks 24 | . . . . . . . 5 . . . 7 12 Damage Inflicted 9465 | . 552 563 . . 1091 1882 1330 635 640 . 1204 1568 Guns 1137 | . 552 274 . . 110 201 . . . . . . Cannons . | . . . . . . . . . . . . . Explosions 96 | . . 96 . . . . . . . . . . Melee 8232 | . . 193 . . 981 1681 1330 635 640 . 1204 1568 Ramming . | . . . . . . . . . . . . . Kinetic 877 | . 552 49 . . 75 201 . . . . . . Thermal 131 | . . 96 . . 35 . . . . . . . Explosive . | . . . . . . . . . . . . . Electromagnetic 225 | . . 225 . . . . . . . . . . Impact 3103 | . . . . . . . 1014 635 640 . . 814 Slashing 3443 | . . 193 . . 981 1681 316 . . . 272 . Piercing 1686 | . . . . . . . . . . . 932 754 Highest Corruption 4 | . 4 4 4 4 . . . . . . 1 4 Average Corruption 3 | . 2 4 4 4 . . . . . . 1 3 Corruption Purged . | . . . . . . . . . . . . . Corruption Blocked . | . . . . . . . . . . . . . Effects 58 | . 7 13 16 17 . . . . . . 1 4 Message Errors 11 | . 1 3 2 2 . . . . . . 1 2 Matter Fused 16 | . 2 5 4 5 . . . . . . . . Heat Flow Errors 5 | . . . 3 1 . . . . . . . 1 Energy Discharges 11 | . 2 3 3 3 . . . . . . . . Data Loss (minor) 5 | . 1 . 3 1 . . . . . . . . Data Loss (major) 7 | . . 2 . 4 . . . . . . . 1 Misfires 1 | . . . 1 . . . . . . . . . Alerts 1 | . . . . 1 . . . . . . . . Weapon Failures 1 | . 1 . . . . . . . . . . . Overload Shots . | . . . . . . . . . . . . . Overflow Damage 1782 | . . 24 . . 103 85 419 352 210 . 75 514 Projectiles . | . . . . . . . . . . . . . Explosions . | . . . . . . . . . . . . . Melee 1782 | . . 24 . . 103 85 419 352 210 . 75 514 Knockbacks 14 | . . . . . . . 8 1 2 . . 3 Impact 12 | . . . . . . . 6 1 2 . . 3 Kinetic . | . . . . . . . . . . . . . Secondary 2 | . . . . . . . 2 . . . . . Self-Inflicted Damage . | . . . . . . . . . . . . . Shots . | . . . . . . . . . . . . . Rammed . | . . . . . . . . . . . . . Targets Rammed . | . . . . . . . . . . . . . Kicked . | . . . . . . . . . . . . . Crushed . | . . . . . . . . . . . . . Highest Temperature 218 | . 20 54 218 193 18 12 . 12 . . 1 196 Average Temperature 37 | . 8 25 89 102 8 5 . 3 . . 1 54 Received Heat Transfer 1329 | . 201 135 . . 144 270 159 . 156 . 180 84 Effects 1 | . . . 1 . . . . . . . . . Energy Bleed 1 | . . . 1 . . . . . . . . . Siege Activations . | . . . . . . . . . . . . . Martial Activations . | . . . . . . . . . . . . . Shielding Activations . | . . . . . . . . . . . . . Robots Disrupted . | . . . . . . . . . . . . . Combat Hostiles . | . . . . . . . . . . . . . Robots Corrupted 13 | . . . . . . . 6 1 4 . . 2 Combat Hostiles 10 | . . . . . . . 5 . 4 . . 1 Parts Fried 13 | . . 1 . . . . 5 3 2 . . 2 Impact Corruptions 41 | . . . . . . . 15 8 8 . . 10 Robots Melted . | . . . . . . . . . . . . . Combat Hostiles . | . . . . . . . . . . . . . Parts Melted . | . . . . . . . . . . . . . Heat Transferred 174 | . . 100 . . 74 . . . . . . . Parts Sabotaged . | . . . . . . . . . . . . . Parts Stolen . | . . . . . . . . . . . . . Parts Stripped . | . . . . . . . . . . . . . Power Chain Reactions 1 | . . 1 . . . . . . . . . . Alert | -11 -10 -10 -10 -9 -8 -8 -7 -6 -6 -6 -5 -5 ------- Run | Yrd Mat Min Exi Min Mat Sto Fac Fac Low Zio Pro Fac Maximum Alert Level 2 | . . . . . 1 1 1 . . . . 2 Low Security (%) 83 | 100 100 100 . 100 68 93 87 100 . . . 10 Level 1 12 | . . . . . 31 6 12 . . . . 56 Level 2 3 | . . . . . . . . . . . . 32 Level 3 . | . . . . . . . . . . . . . Level 4 . | . . . . . . . . . . . . . Level 5 . | . . . . . . . . . . . . . High Security . | . . . . . . . . . . . . . Max Security . | . . . . . . . . . . . . . Peak Influence 513 | . 139 71 . . 242 211 244 130 . . . 513 Initial 406 | . . . . . . 24 88 117 . . . 406 Average 91 | . 48 8 . . 144 72 87 68 . . . 339 Influence Increases 3461 | . 276 171 . . 442 785 465 38 170 . 335 779 Destroy 0b10 Robot/C 1620 | . 160 140 . . 220 280 200 . 120 . 220 280 Destroy 0b10 Robot/NC 110 | . 15 . . . 20 10 10 30 . . 10 15 Destroy Leader 332 | . 30 30 . . 66 84 40 . 20 . 30 32 Successful Hack 84 | . 25 . . . 4 16 . 8 . . . 31 Disable Machine 45 | . . . . . . 45 . . . . . . Destroy Structure 55 | . 1 1 . . 12 20 5 . . . . 16 Advance Influence 300 | . . . . . . . . . . . . 300 Partial Spotted 105 | . . . . . 15 45 . . . . . 45 Lose Combat Pursuer 810 | . 45 . . . 105 285 210 . 30 . 75 60 Influence Decreases 3306 | . 276 171 . . 384 649 418 274 175 . 166 793 Entered New Map 330 | . . . . . . 34 106 124 3 . . 63 Time Decay 2236 | . 266 141 . . 354 545 222 150 122 . 126 310 Search Patrol Dispatched 100 | . . . . . . . . . . . . 100 Lost Part 420 | . 10 30 . . 30 20 90 . 30 . 40 170 Lost Ally 70 | . . . . . . 50 . . 20 . . . Purge Threat 150 | . . . . . . . . . . . . 150 Squads Dispatched 13 | . 1 . . . 2 4 5 . . . . 1 Investigation 4 | . 1 . . . . 1 2 . . . . . Extermination 1 | . . . . . . . . . . . . 1 Reinforcement 6 | . . . . . 2 1 3 . . . . . Assault 2 | . . . . . . 2 . . . . . . Garrison . | . . . . . . . . . . . . . Intercept . | . . . . . . . . . . . . . Searches Triggered 1 | . . . . . . . . . . . . 1 Construction Impeded 2 | . . . . . . . 2 . . . . . Haulers Reinforced . | . . . . . . . . . . . . . Active Scanning Responses . | . . . . . . . . . . . . . Cargo Convoy Interrupts . | . . . . . . . . . . . . . Stealth | -11 -10 -10 -10 -9 -8 -8 -7 -6 -6 -6 -5 -5 --------- Run | Yrd Mat Min Exi Min Mat Sto Fac Fac Low Zio Pro Fac Distress Signals 7 | . . . . . 1 6 . . . . . . Communications Jammed 7 | . . . . . . . . . . . . 7 Distress Signals 7 | . . . . . . . . . . . . 7 Times Spotted 165 | . 17 7 . . 23 40 24 1 7 . 16 30 Peak Tracking Total 10 | . 2 3 . . 7 10 7 1 3 . 4 10 Tactical Retreats 24 | . 2 . . . 4 6 5 . 1 . 3 3 Traps | -11 -10 -10 -10 -9 -8 -8 -7 -6 -6 -6 -5 -5 ------- Run | Yrd Mat Min Exi Min Mat Sto Fac Fac Low Zio Pro Fac Traps Triggered 12 | . 3 . . . . 5 1 1 . . . 2 Indirectly . | . . . . . . . . . . . . . Trap Hack Attempts . | . . . . . . . . . . . . . Triggered . | . . . . . . . . . . . . . Disarmed . | . . . . . . . . . . . . . Reprogrammed . | . . . . . . . . . . . . . Reused . | . . . . . . . . . . . . . Traps Extracted . | . . . . . . . . . . . . . Installed . | . . . . . . . . . . . . . Triggered . | . . . . . . . . . . . . . Objects Rigged 9 | . 1 . . 2 3 3 . . . . . . Machines | -11 -10 -10 -10 -9 -8 -8 -7 -6 -6 -6 -5 -5 ---------- Run | Yrd Mat Min Exi Min Mat Sto Fac Fac Low Zio Pro Fac Machines Disabled 3 | . . . . . . 3 . . . . . . Max in Single Turn 1 | . . . . . . 1 . . . . . . Garrison Access 1 | . . . . . . 1 . . . . . . Machines Repaired . | . . . . . . . . . . . . . Machines Dismantled . | . . . . . . . . . . . . . Machines Sabotaged . | . . . . . . . . . . . . . Overloaded Fab Kills . | . . . . . . . . . . . . . Hacking | -11 -10 -10 -10 -9 -8 -8 -7 -6 -6 -6 -5 -5 --------- Run | Yrd Mat Min Exi Min Mat Sto Fac Fac Low Zio Pro Fac Machines Accessed 35 | . 5 1 3 1 3 8 2 4 2 . 1 5 Terminals 19 | . 4 . . 1 1 4 2 3 . . 1 3 Fabricators . | . . . . . . . . . . . . . Repair Stations 3 | . . . . . 1 2 . . . . . . Recycling Units 3 | . 1 . . . . 1 . 1 . . . . Scanalyzers 2 | . . . . . 1 . . . . . . 1 Garrison Access 2 | . . . . . . 1 . . . . . 1 Total Hacks 121 | . 13 1 39 2 9 23 3 7 5 . 4 15 Successful 85 | . 6 1 39 1 5 13 . 2 5 . 4 9 Failed 35 | . 7 . . 1 4 10 3 5 . . . 5 Catastrophic 12 | . 3 . . 1 1 2 3 1 . . . 1 Database Lockouts 1 | . . . . . . . . . . . . 1 Manual 36 | . 10 . 1 1 3 9 3 6 . 1 . 2 Terminals 41 | . 8 . . 2 3 7 3 4 . . 4 10 Fabricators . | . . . . . . . . . . . . . Repair Stations 9 | . . . . . 3 6 . . . . . . Recycling Units 13 | . 5 . . . . 5 . 3 . . . . Scanalyzers 6 | . . . . . 3 . . . . . . 3 Garrison Access 7 | . . . . . . 5 . . . . . 2 Terminal Hacks 63 | . 2 1 39 1 . 2 . 2 5 . 4 7 Record 51 | . . . 39 1 . . . . 4 . 4 3 Prototype ID Bank 2 | . . . . . . . . . . . . 2 Open Door 3 | . . 1 . . . 1 . . 1 . . . Open DSF 1 | . . . . . . . . 1 . . . . Branch Access Points 3 | . 1 . . . . 1 . 1 . . . . Unreport Threat 1 | . . . . . . . . . . . . 1 Dispatch Records 2 | . 1 . . . . . . . . . . 1 Fabricator Hacks . | . . . . . . . . . . . . . Repair Station Hacks 7 | . . . . . 3 4 . . . . . . Scan Component 4 | . . . . . 2 2 . . . . . . Repair 3 | . . . . . 1 2 . . . . . . Recycling Unit Hacks 4 | . 1 . . . . 3 . . . . . . Report Inventory 2 | . 1 . . . . 1 . . . . . . Retrieve Components 2 | . . . . . . 2 . . . . . . Scanalyzer 4 | . . . . . 2 . . . . . . 2 Retrieve Study 4 | . . . . . 2 . . . . . . 2 Garrison Access Hacks 1 | . . . . . . 1 . . . . . . Seal Access 1 | . . . . . . 1 . . . . . . Unauthorized Hacks 6 | . 3 . . . . 3 . . . . . . Terminals 2 | . 1 . . . . 1 . . . . . . Assimilate 1 | . . . . . . 1 . . . . . . Detonate 1 | . 1 . . . . . . . . . . . Fabricators . | . . . . . . . . . . . . . Repair Stations . | . . . . . . . . . . . . . Recycling Units 4 | . 2 . . . . 2 . . . . . . Reject 2 | . 1 . . . . 1 . . . . . . Mask 2 | . 1 . . . . 1 . . . . . . Scanalyzers . | . . . . . . . . . . . . . Garrison Access . | . . . . . . . . . . . . . Data Cores Recovered 2 | . . . . . . . . 1 . . . 1 Used 1 | . . . . . . . . 1 . . . . Hacking Detections 20 | . 3 . . 1 2 5 2 2 . . . 5 Full Trace Events 1 | . . . . . . . 1 . . . . . Feedback Events . | . . . . . . . . . . . . . Feedback Blocked . | . . . . . . . . . . . . . Robot Schematics Acquired . | . . . . . . . . . . . . . Robots Built . | . . . . . . . . . . . . . Authchips . | . . . . . . . . . . . . . Time . | . . . . . . . . . . . . . Total Robot Build Rating . | . . . . . . . . . . . . . Part Schematics Acquired . | . . . . . . . . . . . . . Parts Built . | . . . . . . . . . . . . . Authchips . | . . . . . . . . . . . . . Time . | . . . . . . . . . . . . . Total Part Build Rating . | . . . . . . . . . . . . . Part Studies Acquired 4 | . . . . . 2 . . . . . . 2 Parts Repaired 3 | . . . . . 1 2 . . . . . . Time 90 | . . . . . 26 64 . . . . . . Parts Recycled . | . . . . . . . . . . . . . Recycled Matter . | . . . . . . . . . . . . . Retrieved Matter . | . . . . . . . . . . . . . Retrieved Components 10 | . . . . . . 10 . . . . . . Parts Scanalyzed . | . . . . . . . . . . . . . Part Schematics Acquired . | . . . . . . . . . . . . . Parts Damaged . | . . . . . . . . . . . . . Bothacking | -11 -10 -10 -10 -9 -8 -8 -7 -6 -6 -6 -5 -5 ------------ Run | Yrd Mat Min Exi Min Mat Sto Fac Fac Low Zio Pro Fac Used RIF Installer . | . . . . . . . . . . . . . Robots Hacked . | . . . . . . . . . . . . . Non-combat . | . . . . . . . . . . . . . Combat . | . . . . . . . . . . . . . Robot Hacks Applied . | . . . . . . . . . . . . . Relay Couplers Released . | . . . . . . . . . . . . . Fabnet Peak Effective % . | . . . . . . . . . . . . . Robots Rewired 1 | . . . . . . . . 1 . . . . Allies Hacked . | . . . . . . . . . . . . . Hacks Repelled . | . . . . . . . . . . . . . Allies | -11 -10 -10 -10 -9 -8 -8 -7 -6 -6 -6 -5 -5 -------- Run | Yrd Mat Min Exi Min Mat Sto Fac Fac Low Zio Pro Fac Total Allies 6 | . . . . . . 3 . 1 2 . . . Largest Group 2 | . . . . . . 2 . 1 2 . . . Highest-Rated Group 62 | . . . . . . 62 . 40 40 . . . Highest-Rated Ally 40 | . . . . . . 31 . 40 20 . . . Total Orders 1 | . . . . . . 1 . . . . . . ROAM 1 | . . . . . . 1 . . . . . . Ally Attacks 12 | . . . . . . 10 . . 2 . . . Total Damage 208 | . . . . . . 164 . . 44 . . . Kills . | . . . . . . . . . . . . . Allies Corrupted . | . . . . . . . . . . . . . Allies Melted 1 | . . . . . . . . . 1 . . . Intel | -11 -10 -10 -10 -9 -8 -8 -7 -6 -6 -6 -5 -5 ------- Run | Yrd Mat Min Exi Min Mat Sto Fac Fac Low Zio Pro Fac Active Infowar (turns) 346 | . . . . . . . . . . . . 346 Jamming 346 | . . . . . . . . . . . . 346 Robot Analysis Total . | . . . . . . . . . . . . . Derelict Logs Recovered 7 | . . 1 . . . . . . 2 2 2 . Drone Launches . | . . . . . . . . . . . . . Drone Recoveries . | . . . . . . . . . . . . . Exploration | -11 -10 -10 -10 -9 -8 -8 -7 -6 -6 -6 -5 -5 ------------- Run | Yrd Mat Min Exi Min Mat Sto Fac Fac Low Zio Pro Fac Turns Passed 9275 | 70 778 742 793 765 862 1967 467 319 701 556 560 695 Spaces Moved 9578 | 52 482 552 656 501 694 1631 581 593 1384 896 584 972 Core 14 | 6 . . . . . . 2 . . . . 6 Treads . | . . . . . . . . . . . . . Legs 2237 | 46 482 552 656 501 . . . . . . . . Wheels . | . . . . . . . . . . . . . Hover 5496 | . . . . . 694 1631 483 78 1384 896 324 6 Flight 1831 | . . . . . . . 96 515 . . 260 960 Fastest Speed 21 | 50 120 120 120 120 48 45 26 23 43 45 23 21 Average Speed 63 | 111 120 120 120 120 80 50 42 30 44 45 35 32 Slowest Speed 435 | 120 120 120 120 120 112 110 250 315 106 45 106 435 Overloaded Moves . | . . . . . . . . . . . . . Propulsion Burnouts . | . . . . . . . . . . . . . Robots Hopped . | . . . . . . . . . . . . . Potential Cave-ins . | . . . . . . . . . . . . . Cave-ins Triggered . | . . . . . . . . . . . . . Exploration Rate (%) 53 | 3 65 91 79 72 29 74 14 11 78 79 69 25 Regions Visited 12 Branch Regions 7 Pre-discovered Areas 4 | . . . 1 1 . . . . 1 1 . . Known Exits Taken 4 | . 1 . . . . 1 . 1 . . 1 . Unknown Exits Taken 8 | 1 . 1 1 1 1 . 1 . 1 1 . . Scrap Searched 10 | . . 1 . 3 . . . . 2 1 3 . Spaces Dug 51 | . . . . . 14 21 7 . . . . 9 Terrain Destroyed 52 | . . 1 . . 14 21 7 . . . . 9 Melee 51 | . . . . . 14 21 7 . . . . 9 Projectile . | . . . . . . . . . . . . . AOE 1 | . . 1 . . . . . . . . . . Terrain Rammed . | . . . . . . . . . . . . . Walls Destroyed . | . . . . . . . . . . . . . Machines Disabled . | . . . . . . . . . . . . . Actions | -11 -10 -10 -10 -9 -8 -8 -7 -6 -6 -6 -5 -5 --------- Run | Yrd Mat Min Exi Min Mat Sto Fac Fac Low Zio Pro Fac Total 12288 | 61 605 590 662 664 936 2666 737 714 1442 1050 883 1278 Wait 2069 | . 59 3 . 159 150 885 105 78 31 140 258 201 Move 9566 | 51 481 551 655 500 693 1630 580 592 1383 895 583 972 Hop . | . . . . . . . . . . . . . Pick Up 68 | 4 9 . 1 . 11 12 3 9 1 6 4 8 Fast Attach 46 | 6 1 2 2 . 4 8 5 5 3 1 2 7 Attach 43 | . 1 1 1 . 7 4 6 3 2 2 6 10 Detach 10 | . . . 1 . 1 2 2 1 1 1 . 1 Swap 47 | . 4 . . 2 2 16 . 13 . . 1 9 Drop 59 | . 7 . 2 1 5 11 4 6 2 5 4 12 Fire 91 | . 43 28 . . 8 12 . . . . . . Melee 254 | . . 5 . . 52 83 32 6 13 . 25 38 Ram . | . . . . . . . . . . . . . Kick . | . . . . . . . . . . . . . Crush . | . . . . . . . . . . . . . Escape Stasis 20 | . . . . . . . . . . . . 20 Rewire 7 | . . . . . . . . 1 6 . . . Trap 8 | . . . . 2 3 3 . . . . . . Miscellaneous . | . . . . . . . . . . . . . Route ------- -11/Scrapyard -10/Materials (discovered 2 exits: [*Mat] / *Min) -10/Mines (discovered 3 exits: [*Mat x2] / *Exi) -10/Exiles (discovered 2 exits: *Min x2) -9/Mines -8/Materials (discovered 2 exits: Fac / *Sto) -8/Storage (discovered 2 exits: *Fac / Rec) -7/Factory -6/Factory (discovered 2 exits: *Low x2) -6/Lower Caves -6/Zion -5/Proximity Caves -5/Factory (discovered 3 exits: Fac x3) History --------- Turn | Location | Event 14 | -11/Scrapyard | Discovered new exit (range 14) 71 | -11/Scrapyard | Entered Materials 315 | -10/Materials | Build established: Mutant 604 | -10/Materials | Identified exit to Mines 734 | -10/Materials | Discovered new exit (range 15) 849 | -10/Materials | Entered Mines 860 | -10/Mines | Received a Rocket Launcher from a helpful Derelict 1042 | -10/Mines | Learned location of 1 exit from Materials 1067 | -10/Mines | A weapon hastily lodged in a ceiling crevice suddenly fell to the ground 1119 | -10/Mines | Discovered new exit (range 3) 1175 | -10/Mines | Discovered new exit (range 8) 1208 | -10/Mines | Core integrity fell below 50% 1439 | -10/Mines | Met a Derelict who couldn't figure out how to use a Trap Extractor 1520 | -10/Mines | Build established: Scavenger-Mutant 1586 | -10/Mines | Deemed a non-threat by the Exiles lab entrance 1586 | -10/Mines | Discovered new exit (range 5) 1591 | -10/Mines | Entered Exiles 1620 | -10/Exiles | Met 8R-AWN 1642 | -10/Exiles | Met EX-HEX 1675 | -10/Exiles | Met EX-BIN 1691 | -10/Exiles | Aligned with FarCom system 1692 | -10/Exiles | Given EX-Vault access code 1811 | -10/Exiles | Opened EX-Vault 1822 | -10/Exiles | Found Prototype Energy Cannon 1822 | -10/Exiles | Identified YOLO Cannon 1847 | -10/Exiles | Found Prototype Device 1873 | -10/Exiles | Warned to stay clear of 0b10 Research branches 1905 | -10/Exiles | Met EX-DEC 1917 | -10/Exiles | Learned location of Zion (-6) 1951 | -10/Exiles | Discovered new exit (range 14) 2078 | -10/Exiles | Visited The Gauntlet 2318 | -10/Exiles | Discovered new exit (range 15) 2384 | -10/Exiles | Left Exiles lab with PSU Rigger 2384 | -10/Exiles | Entered Mines 2402 | -9/Mines | Met a Derelict bent on vengeance 2705 | -9/Mines | Learned location of Storage (-8) 2900 | -9/Mines | Identified PSU Rigger 2955 | -9/Mines | Discovered new exit (range 9) 3149 | -9/Mines | Entered Materials 3149 | -8/Materials | Evolved 4 slots: Propulsion x2, Utility x2 3150 | -8/Materials | Identified exit to Factory 3169 | -8/Materials | Discovered new exit (range 13) 3331 | -8/Materials | Destroyed 8 combat bots 3473 | -8/Materials | Build established: Mutant 3752 | -8/Materials | Repaired Hover Unit 4011 | -8/Materials | Entered Storage 4148 | -8/Storage | Repaired Imp. Propulsion Shielding 4308 | -8/Storage | Repaired Hover Unit 4409 | -8/Storage | Identified exit to Recycling 5612 | -8/Storage | Discovered exit to Factory (range 15) 5618 | -8/Storage | Met a pair of Derelict thieves 5978 | -8/Storage | Entered Factory 5978 | -7/Factory | Evolved 2 slots: Utility x1, Weapon x1 6390 | -7/Factory | Lost 6 parts (1p3n2u) 6392 | -7/Factory | Destroyed 8 combat bots 6415 | -7/Factory | Discovered new exit (range 13) 6445 | -7/Factory | Entered another Factory area 6445 | -6/Factory | Evolved 2 slots: Propulsion x1, Utility x1 6458 | -6/Factory | Identified exit to Lower Caves 6764 | -6/Factory | Entered Lower Caves 6823 | -6/Lower Caves | Learned Factory terminal intel 6881 | -6/Lower Caves | A Commander dispatched an escort 6886 | -6/Lower Caves | Learned 8 Factory zone layouts 6886 | -6/Lower Caves | Learned Factory garrison access intel 7115 | -6/Lower Caves | Lost 3 parts (2n1u) 7393 | -6/Lower Caves | Build established: Gladiator 7454 | -6/Lower Caves | A Derelict revealed a hidden shortcut to a safe place 7456 | -6/Lower Caves | Encountered a Warlord checkpoint 7465 | -6/Lower Caves | Entered Zion 7612 | -6/Zion | Received a visual enhancement algorithm 7612 | -6/Zion | Ran a visual enhancement algorithm 7741 | -6/Zion | Found CR-A16's Pointy Stick 7792 | -6/Zion | Given the Hacking Drone Bay 7793 | -6/Zion | Found Prototype Device 7869 | -6/Zion | Rebuked by Imprinter 8010 | -6/Zion | Discovered new exit (range 16) 8021 | -6/Zion | Entered Proximity Caves 8023 | -5/Proximity Caves | Spotter reported a threat 8024 | -5/Proximity Caves | Spotter reported a threat 8490 | -5/Proximity Caves | Learned Factory interactive machine intel 8514 | -5/Proximity Caves | Attracted the attention of an 0b10 base 8525 | -5/Proximity Caves | Core integrity fell below 50% 8547 | -5/Proximity Caves | Identified exit to Factory 8547 | -5/Proximity Caves | Learned Extension emergency access door positions 8551 | -5/Proximity Caves | Lost 4 parts (1p2n1u) 8564 | -5/Proximity Caves | Learned location of 1 exit from Proximity Caves 8570 | -5/Proximity Caves | Attracted the attention of an 0b10 checkpoint 8581 | -5/Proximity Caves | Entered Factory 8581 | -5/Factory | Evolved 2 slots: Propulsion x1, Weapon x1 8582 | -5/Factory | Identified exit to Factory 8584 | -5/Factory | Loaded intel: 53 interactive machine locations 8585 | -5/Factory | Loaded intel: 25 terminal locations 8586 | -5/Factory | Loaded intel: 4 garrison access locations 8869 | -5/Factory | Central database locked down 8881 | -5/Factory | Search patrols dispatched 8882 | -5/Factory | Ran a visual enhancement algorithm 8883 | -5/Factory | Build established: Sprinter 9104 | -5/Factory | Lost 3 parts (3n) 9221 | -5/Factory | Core integrity fell below 50% 9268 | -5/Factory | Core integrity fell below 20% 9276 | -5/Factory | Destroyed by S-27 Virus with Autogun Last Messages --------------- 09256_ U-05 Engineer builds a Wall. 09257_ K-01 Serf collects debris. 09257_ U-05 Engineer builds a Wall. 09258_ Lgt. Nuclear Core destroyed. 09259_ K-01 Serf collects debris. 09260_ U-05 Engineer builds a Wall. 09260_ Hacking Suite destroyed. 09261_ R-10 Processor collects Corrupted Autogun. 09261_ U-05 Engineer lays Concrete. 09262_ K-01 Serf collects debris. 09262_ U-05 Engineer lays Concrete. 09263_ Shock Maul destroyed. 09263_ U-05 Engineer lays Concrete. 09267_ R-10 Processor collects VTOL Module. 09270_ K-01 Serf collects debris. 09270_ R-10 Processor collects Lgt. Nuclear Core. 09271_ DB Z,=S2TVU/ FCV/= EL9=KV58V= 09273_ K-01 Serf collects debris. Map ----- +----------------------------------------------------+ | ## [[[ ^ ???????????????????? | | ## [[[ ??????????????????? | | S ## [[ = ""??????????????????? | | "" ## ""??????????????????? | | "" ## """ """ """ """ """ F"??????????????????? | | ## """ """ """ """ ""???""??????????????????? | | /##### """ """ """ """ """??????????????????????? | | !![??????????????????? | | """ """ """ """ """??? ??????????????????? | | ????? """ """ """ """ """ ?[ ?????????????????? | | ??? """ """ """ """ """ ?????????????????? | | ? ???????????????? | | ????## """ """ """ """ """ """??????????????????? | | ?????# ?""" """ """ """ """ """ #??????????????? | | ?????? """"""" """ """ """h""" #??????????????? | | ???? / "%" #??????????????? | | ?????# ! #??????????????? | | ?????# #######?????????????????? | | ?????# % =#???????????????????????? | | ?????# ###########+#######???????????????????? | | ?????? ?????# %% #???????????????????? | | ?????? ?? ??????# % #???????????????????? | | ????????????????# """R""" #???????????????????? | | ????????????????# """ """ #???????????????????? | | ????????????????# """ """ #???????????????????? | | ???????????T????# ""% ""@ #???????????????????? | | ??"""???????????# "" ""ssg #???????????????????? | | ???R"???????????# #???????????????????? | | ??"""???????????# #???????????????????? | | ????????????????# s #???????????????????? | | ??????????????### #???????????????????? | | ????????????### # #???????????????????? | | ???????????##"""###+###;;;####???????????????????? | | ???????????# ; ####???????????????????? | | ???????????# #??????????????????????? | | ???????????# k #??????????????????????? | | ???????????# k #??????????????????????? | | ???????????# s #??????????????????????? | | ???????????# #????????????????""?""?? | | ???????????# ;##????????????????""G""?? | | ???????????# ; ???????????????????????? | | ???????????# "##??????????????????????? | | ?? #######/""#####???????????????????????? | | ?? % ????????????????? | | ?? ??????